Workbook

Sheet Variablen (hidden)
A1: Variablen
B4: Umsatzeinbruch | C4: Erstattungssatz
B5: 70% | C5: 90%
B6: 50% | C6: 60%
B7: 30% | C7: 40%
B8: Solo | C8: 25% | D8: 5000
A13: Förderung Personenunternehmen NRW Monatlich | B13: 1,000.00 €
A16: Textvariabeln
A17: Die Förderfähigkeit ist aufgrund eines Umsatzrückgangs in den Monaten
A18: unabhängig von einer bundesweiten Schließung gegeben.
A19: Für den Monat Dezember 2020 wurde ein Umsatzrückgang von mindestens 30% festgestellt. Sollte das Unternehmen von einer bundesweiten Schließung betroffen sein, erhöht sich der maximale Fixkostenzuschss auf 500.000 €.
A21: Die Förderung nach tatsächlichen Kosten ist günstiger.
A22: Die Förderung durch die Betriebskostenpauschale für Soloselbständige ist günstiger.

Sheet Version_Kennwort
B1: Überbrückungshilfe Phase 3 Hinweise und Impressum
B3: 1. Versionshinweis
B4: Version 2021.13.1
B5: Stand: 31. März 2021 - berücksicht werden die FAQ mit Stand 24. März 2021
B6: Vorliegen einer aktuelleren Version in der NWB Datenbank prüfen.
B7: NWB DOI XAAAH-68524
B9: 2. Eingabefelder
B10: Die Eingabefelder sind gelb hinterlegt.
B12: 3. Schreibschutz / Kennwort
B14: Die Arbeitsblätter sind - abgesehen von den Eingabefeldern - mit einem Schreibschutz belegt.
B16: Das Kennwort für die Aufhebung des Schreibschutzes lautet:
B17: nwbverlag
B19: Bitte beachten Sie, dass sich eine Veränderung der Gestaltung des Formulars auch
B20: auf die Richtigkeit der Berechnungsformeln auswirken können.
B22: 4. Autor
B23: Dieses Berechnungsprogramm wird inhaltlich betreut von Olaf Stein.
B25: 5. Haftungsausschluss / AGB
B26: Der NWB Verlag übernimmt keine Gewähr und keine Haftung für die Richtigkeit der Ergebnisse.
B27: Im Übrigen gelten die die aktuellen AGB der NWB Datenbank und des NWB Verlages.
B29: 6. Impressum
B30: NWB Verlag GmbH & Co. KG
B31: AG Bochum HRA 5124
B32: Eschstr. 22 · 44629 Herne
B33: Fon 02323.141-900 · Fax 02323.141-123
B34: E-Mail: info@nwb.de
B35: Internet: www.nwb.de
B37: Alle Rechte vorbehalten. Vervielfältigungen nur mit Zustimmung des Verlages.

Sheet Stammdaten
B1: Überbrückungshilfe Phase 3 Stammdaten
B3: 1. Adresse und Gründungsdatum
B5: Mandantennummer
B6: Name des Betriebes | L6: Ja
B7: Straße und Hausnr. | L7: Nein
B8: PLZ / Ort
B9: Gründungsdatum | C9: 2019-01-01
B10: Soloselbständiger? | C10: Ja
B11: Auswahl Vergleichsumsatz für - Soloselbständige mit Aufnahme der Tätigkeit vor dem 01.01.2019 - Unternehmen mit Gründungsdatum zwischen dem 01.01.2019 und dem 30.04.2020 bzw. - Soloselbständige oder selbständige Angehörige der freien Berufe mit Aufnahme der selbständigen oder freiberuflichen Tätigkeit zwischen dem 01.01.2019 und dem 30.04.2020 - Verbundene Unternehmen | C11: trifft nicht zu | D11: Vergleichsumsatz = 1. Durchschnittlicher Monatsumsatz des Jahres 2019 2. Durchschnittlicher Monatsumsatz der beiden Vorkrisenmonate Januar und Februar 2020 3. Durchschnittlicher Monatsumsatz in den Monaten Juni bis September 2020 4. Monatlicher Durchschnittswert des geschätzten Jahresumsatzes 2020, der bei der erstmaligen steuerlichen Erfassung beim zuständigen Finanzamt im „Fragebogen zur steuerlichen Erfassung“ angegeben wurde. Hierfür gilt eine maximale Höhe der Überbrückungshilfe von insgesamt 1.800.000 Euro. 5. Verbundene Unternehmen: Kumulierter Umsatz. Hierfür gilt eine maximale Höhe der Überbrückungshilfe von insgesamt 3.000.000 Euro. 6. KMU: Durchschnittlicher Monatsumsatz des Jahres 2019 | L11: 1. | M11: =IF(Soloselbständiger="ja","Durchschnittlicher Monatsumsatz des Jahres 2019","Bitte Eingaben im Blatt 'Stammdaten' überprüfen.") -> Durchschnittlicher Monatsumsatz des Jahres 2019
L12: =IF(Gründungsdatum>=DATE(2019,1,1),"2.","-") -> 2. | M12: Durchschnittlicher Monatsumsatz der beiden Vorkrisenmonate Januar und Februar 2020
L13: =IF(Gründungsdatum>=DATE(2019,1,1),"3.","-") -> 3. | M13: =IF(Gründungsdatum>=DATE(2019,1,1),"Durchschnittlicher Monatsumsatz in den Monaten Juni bis September 2020","Bitte Eingaben im Blatt 'Stammdaten' überprüfen.") -> Durchschnittlicher Monatsumsatz in den Monaten Juni bis September 2020 | N13: Monatlicher Durchschnittswert des geschätzten Jahresumsatzes 2020, der bei der erstmaligen steuerlichen Erfassung beim zuständigen Finanzamt im „Fragebogen zur steuerlichen Erfassung“ angegeben wurde. Hierfür gilt eine maximale Höhe der Überbrückungshilfe von insgesamt 1.800.000 Euro.
B14: 2. Art der Berechnung | L14: =IF(Gründungsdatum>=DATE(2019,1,1),"4.","-") -> 4. | M14: =IF(Gründungsdatum>=DATE(2019,1,1),+N13,"Bitte Eingaben im Blatt 'Stammdaten' überprüfen.") -> Monatlicher Durchschnittswert des geschätzten Jahresumsatzes 2020, der bei der erstmaligen steuerlichen Erfassung beim zuständigen Finanzamt im „Fragebogen zur steuerlichen Erfassung“ angegeben wurde. Hierfür gilt eine maximale Höhe der Überbrückungshilfe von insgesamt 1.800.000 Euro.
L15: =IF(Gründungsdatum>=DATE(2019,1,1),"5.","-") -> 5. | M15: =IF(Gründungsdatum>=DATE(2019,1,1),"Verbundene Unternehmen: Kumulierter Umsatz. Hierfür gilt eine maximale Höhe der Überbrückungshilfe von insgesamt 3.000.000 Euro.","Bitte Eingaben im Blatt 'Stammdaten' überprüfen.") -> Verbundene Unternehmen: Kumulierter Umsatz. Hierfür gilt eine maximale Höhe der Überbrückungshilfe von insgesamt 3.000.000 Euro.
B16: Umsatzschätzung bei Antragstellung 1 | L16: 6. | M16: KMU: Durchschnittlicher Monatsumsatz des Jahres 2019
B17: oder | C17: 1 | L17: trifft nicht zu | M17: Umsatz Monat Vorjahr
B18: abschließende Antragstellung = Ist-Werte 2
B20: 3. Antragsberechtigung nach Angaben zu Unternehmen
B22: =+IF(Gründungsdatum<= DATEVALUE("30.4.2020"),IF(Gründungsdatum>= DATEVALUE("1.8.2019"),"Bitte anderes Berechnungstool verwenden!","Das Unternehmen ist antragsberechtigt."),"Das Unternehmen ist nicht antragsberechtigt.") -> Das Unternehmen ist antragsberechtigt.
B23: =IF(Soloselbständiger="Ja","Bitte die Günstigerprüfung für Soloselbständige beachten (Blatt 'Günstigerprüfung_Solo').","") -> Bitte die Günstigerprüfung für Soloselbständige beachten (Blatt 'Günstigerprüfung_Solo').

Sheet Antrag und Erstattungssatz
B1: Überbrückungshilfe Phase 3 Erstattungssatz
C4: Nov | D4: Dez | E4: Jan | F4: Feb | G4: März | H4: April | I4: Mai | J4: Juni
B5: Umsatz Jahr 2020/2021 | C5: 5,000.00 | D5: 5,000.00 | E5: 0.00 | F5: 0.00 | G5: 0.00 | H5: 2,000.00 | I5: 1,500.00 | J5: 1,500.00
B6: =VLOOKUP(Stammdaten!C11,Stammdaten!L11:M17,2,TRUE) -> Umsatz Monat Vorjahr | C6: 10,000.00 | D6: 10,000.00 | E6: 7,000.00 | F6: 0.00 | G6: 0.00 | H6: 1,000.00 | I6: 7,000.00 | J6: 7,000.00
B7: Auswahl Vergleichsumsatz siehe Blatt "Stammdaten"
B8: Umsatzrückgang absolut | C8: =+C5-C6 -> -5,000.00 | D8: -5,000.00 | E8: -7,000.00 | F8: 0.00 | G8: 0.00 | H8: 1,000.00 | I8: -5,500.00 | J8: -5,500.00
B9: Umsatzrückgang in % | C9: =((-C8+0.01)/(C6+0.01)) -> 50.00% | D9: 50.00% | E9: 100.00% | F9: 100.00% | G9: 100.00% | H9: -100.00% | I9: 78.57% | J9: 78.57%
B11: Antragsberechtigung ist gegeben: | C11: =+IF(C9>=30%,"Ja","Nein") -> Ja | D11: =+IF(D9>=30%,"Ja","Nein") -> Ja | E11: Ja | F11: Ja | G11: Ja | H11: Nein | I11: Ja | J11: Ja
B13: Erstattungssatz | C13: =+IF(Umsatzrückgang_in<=Variablen!B7,0,IF(Umsatzrückgang_in<=Variablen!B6,Variablen!C7,IF(Umsatzrückgang_in<=Variablen!B5,Variablen!C6,Variablen!C5))) -> 60.00% | D13: 60.00% | E13: 90.00% | F13: 90.00% | G13: 90.00% | H13: 0.00% | I13: 90.00% | J13: 90.00%
B15: Die Ersattungssätze lauten: | C15: Umsatzeinbruch | D15: Erstattungssatz
C16: >= 70% | D16: 90%
C17: >= 50% | D17: 60%
C18: >= 30% | D18: 40%
B20: Bitte beachten: Ggf. muss ein bereits gestellter Antrag auf Nov.-/ Dez.-Hilfe zugunsten eines höher beförderten Antrages auf Nov.-/ Dez.-Hilfe PLUS im Rahmen der Überbrückungshilfe 3 zurückgezogen werden. Dieses Vorgehen ist jeweils individuell zu prüfen.
B22: =IF(Stammdaten!C10="Ja","Bitte die Günstigerprüfung für Soloselbständige beachten (Blatt 'Günstigerprüfung_Solo').","") -> Bitte die Günstigerprüfung für Soloselbständige beachten (Blatt 'Günstigerprüfung_Solo').

Sheet Kosten und Förderung
B1: Überbrückungshilfe Phase 3 Kosten und Förderung
B4: 1. Berücksichtigungsfähige Kosten
D5: 2020-11-01 | E5: 2020-12-01 | F5: 2021-01-01 | G5: 2021-02-01 | H5: 2021-03-01 | I5: 2021-04-01 | J5: 2021-05-01 | K5: 2021-06-01
B6: 1. | C6: Mieten und Pachten | D6: 100.00 | E6: 1,000.00 | F6: 100.00 | G6: 100.00 | H6: 100.00 | I6: 100.00 | J6: 100.00 | K6: 100.00
B7: 2. | C7: weitere Mietkosten
B8: 3. | C8: Zinsaufwendungen für Kredite und Darlehen
B9: 4. | C9: Abschreibungen auf Wirtschaftsgüter des AV - näheres siehe Anhang 2 der FAQ | D9: 400.00 | E9: 200.00 | F9: 400.00 | G9: 400.00 | H9: 400.00 | I9: 400.00 | J9: 400.00 | K9: 400.00
B10: 4a. | C10: - davon zu berücksichtigen: 50% | D10: =+Abschreibungen*0.5 -> 200.00 | E10: 100.00 | F10: 200.00 | G10: 200.00 | H10: 200.00 | I10: 200.00 | J10: 200.00 | K10: 200.00
B11: 5. | C11: Finanzierungskostenanteil von Leasingraten
B12: 6. | C12: Ausgaben für notwendige Instandhaltung, Wartung und Einlagerung von Anlagevermögen und gemieteten und geleasten Vermögensgegenständen, einschließlich EDV
B13: 7. | C13: Ausgaben für Elektrizität, Wasser, Heizung, Reinigung
B14: 8. | C14: Grundsteuern
B15: 9. | C15: Betriebliche Lizenzgebühren
B16: 10. | C16: Versicherungen, Abonnements und andere feste Ausgaben
B17: 11. | C17: Kosten für Steuerberater, Wirtschaftsprüfer oder vereidigte Buchprüfer, die im Rahmen der Beantragung der Corona-Überbrückungshilfe Phase 3 anfallen. | D17: 100.00 | E17: 100.00 | F17: 200.00 | G17: 200.00 | H17: 200.00 | I17: 200.00 | J17: 200.00 | K17: 200.00
B18: 12. | C18: Personalaufwendungen gegeben (ja/nein) | D18: Ja | E18: Ja | F18: Ja | G18: Ja | H18: Ja | I18: Ja | J18: Ja | K18: Nein
B19: 12a. | C19: (werden pauschal mit 20 % der Fixkosten Nr. 1 - 11 berücksichtigt) | D19: =IF(D18="Ja",SUM(D6:D8,D10:D13,D14:D17)*0.2,0) -> 80.00 | E19: 240.00 | F19: 100.00 | G19: 100.00 | H19: 100.00 | I19: 100.00 | J19: 100.00 | K19: 0.00
B20: 13. | C20: Kosten für Auszubildende
B21: 14. | C21: bauliche Modernisierungs-, Renovierungs- oder Umbaumaßnahmen für Hygienemaßnahmen Investitionen in Digitalisierung (z.B. Online-Shop); Summe aus 14a. Und 14b. | D21: =D23+D25 -> 39,672.13
B22: 14a. | C22: bauliche Modernisierungs-, Renovierungs- oder Umbaumaßnahmen für Hygienemaßnahmen | D22: 30,000.00 | E22: 10,000.00 | G22: 30,000.00
B23: 14a. | C23: - davon zu berücksichtigen: max. 20.000 € monatlich | D23: =IF(D22>20000,20000,D22) -> 20,000.00 | E23: =IF(E22>20000,20000,E22) -> 10,000.00 | F23: 0.00 | G23: 20,000.00 | H23: 0.00 | I23: 0.00 | J23: 0.00 | K23: 0.00
B24: 14b. | C24: Investitionen in Digitalisierung im Zeitraum März 2020 - Juni 2021 | D24: 30,000.00 | E24: 500.00 | N24: =SUM(D24:K24) -> 30,500.00 € | O24: =IF(D24>0,1,0) -> 1 | P24: =IF(E25>0,1,0) -> 1 | Q24: 0 | R24: 0 | S24: 0 | T24: 0 | U24: 0 | V24: 0
B25: 14b. | C25: - davon zu berücksichtigen: 20.000 € | D25: =IFERROR(D24/N24*N25,0) -> 19,672.13 | E25: =IFERROR(E24/N24*N25,0) -> 327.87 | F25: =IFERROR(F24/N24*N25,0) -> 0.00 | G25: =IFERROR(G24/N24*N25,0) -> 0.00 | H25: =IFERROR(H24/N24*N25,0) -> 0.00 | I25: =IFERROR(I24/N24*N25,0) -> 0.00 | J25: =IFERROR(J24/N24*N25,0) -> 0.00 | K25: =IFERROR(K24/N24*N25,0) -> 0.00 | N25: =IF(N24>20000,20000,N24) -> 20,000.00 €
B26: 15. | C26: Marketing Maximal in Höhe der entsprechenden Ausgaben im Jahre 2019. Bei Unternehmen, die zwischen dem 1. Januar 2019 und dem 30. April 2020 gegründet wurden: Marketing- und Werbekosten maximal in Höhe der entsprechenden Ausgaben für zwölf Monate in einem beliebigen Zeitraum seit Gründung.
B27: 16. | C27: Reisebranche: 1. Zurückgezahlte bzw. ausgebliebene Provisionen für Reisebüros oder Margen für Reiseveranstalter für Pauschalreisen, die - vor dem 18.03.2020 gebucht, - seit dem 18.03.2020 im Zusammenhang mit Corona-bedingten Reisewarnungen des Auswärtigen Amtes bzw. innerdeutschen Reiseverboten oder temporären Grenzschließungen storniert (Rücktritt vom Reisevertrag) und - die bis zum 31.08.2020 von den Reisenden angetreten worden wären. 2. bei zusätzlich erstattungsfähigen Kosten für Zeitraum 01.03.2020 bis 31.12.2020 und Umsatzrückgang > 30%: Personalkostenpauschale i.H.v. 50%
B28: 17. | C28: Veranstaltungs- und Kulturbranche: Ausfall- und Vorbereitungskosten - wenn Umsatzrückgang >30%; weiteres siehe Anhang 1 der FAQ
B29: 18. | C29: Einzelhandel: Wertverlust für verderbliche Ware und Saisonware - im Vergleichsmonat 2019 muss mindestens 70% des Umsatz aus Stationärem Handel erzielt worden sein
B30: 19. | C30: Kosten für Unternehmen der Pyrotechnikindustrie - für Dezember 2020 muss ein Umsatzeinbruch von mind. 80% vorliegen
B31: 20. | C31: Pyrotechnikindustrie: Lager- und Transportkosten - für Dezember 2020 muss ein Umsatzeinbruch von mind. 80% vorliegen
B34: 2. Förderfähige Kosten, Erstattung und Förderung
D35: 2020-11-01 | E35: 2020-12-01 | F35: 2021-01-01 | G35: 2021-02-01 | H35: 2021-03-01 | I35: 2021-04-01 | J35: 2021-05-01 | K35: 2021-06-01
B36: Förderfähige Kosten | D36: =+SUM(D26:D31,D19:D20,D21,D14:D17,D10:D13,D6:D8) -> 40,152.13 | E36: =+SUM(E23:E31,E19:E20,E14:E17,E10:E13,E6:E8) -> 12,267.87 | F36: 600.00 | G36: 20,600.00 | H36: 600.00 | I36: 600.00 | J36: 600.00 | K36: 500.00
B37: Erstattung gem. maßgeblichem Erstattungssatz | D37: =+Erstattungssatz*Förderfähige_Kosten -> 24,091.28 | E37: 7,360.72 | F37: 540.00 | G37: 18,540.00 | H37: 540.00 | I37: 0.00 | J37: 540.00 | K37: 450.00
B38: Zwischensumme mögliche Förderung | D38: =SUM(D37:D37) -> 24,091.28 | E38: 7,360.72 | F38: 540.00 | G38: 18,540.00 | H38: 540.00 | I38: 0.00 | J38: 540.00 | K38: 450.00 | L38: =SUM(Förderung_gesamt) -> 52,062.00
B39: Förderung gesamt | D39: =IF(Stammdaten!C11="4.",MIN(+D38,1800000),IF(Stammdaten!C11="5.",MIN(+D38,3000000),MIN(+D38,1500000))) -> 24,091.28 | E39: =IF(Stammdaten!C11="4.",MIN(+E38,1800000),IF(Stammdaten!C11="5.",MIN(+E38,3000000),MIN(+E38,1500000))) -> 7,360.72 | F39: =IF(Stammdaten!C11="4.",MIN(+F38,1800000),IF(Stammdaten!C11="5.",MIN(+F38,3000000),MIN(+F38,1500000))) -> 540.00 | G39: =IF(Stammdaten!C11="4.",MIN(+G38,1800000),IF(Stammdaten!C11="5.",MIN(+G38,3000000),MIN(+G38,1500000))) -> 18,540.00 | H39: =IF(Stammdaten!C11="4.",MIN(+H38,1800000),IF(Stammdaten!C11="5.",MIN(+H38,3000000),MIN(+H38,1500000))) -> 540.00 | I39: =IF(Stammdaten!C11="4.",MIN(+I38,1800000),IF(Stammdaten!C11="5.",MIN(+I38,3000000),MIN(+I38,1500000))) -> 0.00 | J39: =IF(Stammdaten!C11="4.",MIN(+J38,1800000),IF(Stammdaten!C11="5.",MIN(+J38,3000000),MIN(+J38,1500000))) -> 540.00 | K39: =IF(Stammdaten!C11="4.",MIN(+K38,1800000),IF(Stammdaten!C11="5.",MIN(+K38,3000000),MIN(+K38,1500000))) -> 450.00 | L39: =SUM(D39:K39) -> 52,062.00

Sheet Günstigerprüfung_Solo
B1: Überbrückungshilfe Phase 3 Günstigerprüfung für Soloselbständige
B4: =+IF(Soloselbständiger="ja","Vergleich: Summe maximaler Förderbetrag vs. 50% des Vergleichsumsatz, maximal 7.500 Euro.","Diese Rechnung ist nur für Soloselbständige relvant.") -> Vergleich: Summe maximaler Förderbetrag vs. 50% des Vergleichsumsatz, maximal 7.500 Euro.
B6: Berechnung der einmaligen Betriebskostenpauschale:
Q7: Monat | R7: Zählung | S7: Ja
C8: 2019-01-01 | D8: 2019-02-01 | E8: 2019-03-01 | F8: 2019-04-01 | G8: 2019-05-01 | H8: 2019-06-01 | I8: 2019-07-01 | J8: 2019-08-01 | K8: 2019-09-01 | L8: 2019-10-01 | M8: 2019-11-01 | N8: 2019-12-01 | O8: Summe | Q8: Jan | R8: =IF(C9="Ja",1,0) -> 0 | S8: Nein
B9: Im Monat bereits gegründet? | C9: Nein | D9: Nein | E9: Nein | F9: Ja | G9: Ja | H9: Ja | I9: Ja | J9: Ja | K9: Ja | L9: Ja | M9: Ja | N9: Ja | Q9: Feb | R9: =IF(D9="Ja",1,0) -> 0
B10: Umsatz | C10: 10,000.00 | D10: 1,000.00 | E10: 1,000.00 | F10: 5,000.00 | G10: 1,000.00 | H10: 20,000.00 | I10: 1,000.00 | J10: 1,000.00 | K10: 1,000.00 | L10: 1,000.00 | M10: 1,000.00 | N10: 1,000.00 | Q10: März | R10: =IF(E9="Ja",1,0) -> 0
B11: berücksichtigt wird | C11: =IF(C9="Ja",C10,0) -> 0.00 | D11: =IF(D9="Ja",D10,0) -> 0.00 | E11: 0.00 | F11: 5,000.00 | G11: 1,000.00 | H11: 20,000.00 | I11: 1,000.00 | J11: 1,000.00 | K11: 1,000.00 | L11: 1,000.00 | M11: 1,000.00 | N11: 1,000.00 | O11: =SUM(C11:N11) -> 32,000.00 | Q11: April | R11: =IF(F9="Ja",1,0) -> 1
Q12: Mai | R12: =IF(G9="Ja",1,0) -> 1
H13: = Summe Umsatz | K13: =O11 -> 32,000.00 € | Q13: Juni | R13: =IF(H9="Ja",1,0) -> 1
H14: = Summe Öffnungsmonate | K14: =R21 -> 9 | Q14: Juli | R14: =IF(I9="Ja",1,0) -> 1
H15: = Summe / Öffnungsmonate * 12 Monate | K15: =O11/R21*12 -> 42,666.67 € | L15: = Vergleichsumsatz (nach Öffnungsmonaten gewichteter Umsatz) | Q15: August | R15: =IF(J9="Ja",1,0) -> 1
H16: = Vergleichsumsatz /2 = | K16: =+K15/2 -> 21,333.33 € | L16: = Referenzumsatz
H17: davon 50%; max. 7.500 € | K17: =IF(K15*0.25>7500,7500,K15*0.25) -> 7,500.00 € | L17: = einmalige Betriebskostenpauschale | Q17: Sept | R17: =IF(K9="Ja",1,0) -> 1
Q18: Okt | R18: =IF(L9="Ja",1,0) -> 1
Q19: Nov | R19: =IF(M9="Ja",1,0) -> 1
B20: Prüfung: Antrag Betriebskostenpauschale vs. tatsächliche Kosten | Q20: Dez | R20: =IF(N9="Ja",1,0) -> 1
C21: Einmalige Betriebskostenpauschale | J21: =K17 -> 7,500.00 € | Q21: Summe | R21: =SUM(R8:R20) -> 9
C22: Maximaler Förderbetrag Stufe 2 (siehe Blatt "Kosten und Förderung") | J22: =+'Kosten und Förderung'!L38 -> 52,062.00 €
C24: Es sollte beantragt werden:
C25: =IF(Soloselbständiger="ja",IF(J21>J22,"Einmalige Betriebskostenpauschale","Förderung nach tatsächlichen Kosten"),"Da der Antragsteller kein Soloselbständier ist, wird auf die Regelförderung verwiesen") -> Förderung nach tatsächlichen Kosten

Sheet Zusammenfassung
B1: Überbrückungshilfe Phase 3 Zusammenfassung
B4: 1. Antragsberechtiger
B5: =Stammdaten!B5 -> Mandantennummer | C5: =+Stammdaten!C5 -> 0
B6: =Stammdaten!B6 -> Name des Betriebes | C6: =+Stammdaten!C6 -> 0
B7: =Stammdaten!B7 -> Straße und Hausnr. | C7: =+Stammdaten!C7 -> 0
B8: =Stammdaten!B8 -> PLZ / Ort | C8: =+Stammdaten!C8 -> 0
B10: =+IF(Gründungsdatum<= DATEVALUE("30.4.2020"),IF(Gründungsdatum>= DATEVALUE("1.8.2019"),"Bitte anders Berechnungstool verwenden!",_xlfn.CONCAT("Gründungsdatum ",TEXT(Gründungsdatum,"-> TT.MM.JJJJ"))),"Unternehmen ist nicht antragsberechtigt.") -> Gründungsdatum -> 01.01.2019
B11: =_xlfn.CONCAT(Stammdaten!B10," -> ",Soloselbständiger) -> Soloselbständiger? -> Ja
B12: =IF(Stammdaten!C11="5.","Verbundenes Unternehmen? -> Ja","Verbundenes Unternehmen? -> Nein") -> Verbundenes Unternehmen? -> Nein
B14: 2. Förderfähigkeit
C15: 2020-11-01 | D15: 2020-12-01 | E15: 2021-01-01 | F15: 2021-02-01 | G15: 2021-03-01 | H15: 2021-04-01 | I15: 2021-05-01 | J15: 2021-06-01
C16: =+'Antrag und Erstattungssatz '!C11 -> Ja | D16: =+'Antrag und Erstattungssatz '!D11 -> Ja | E16: =+'Antrag und Erstattungssatz '!E11 -> Ja | F16: =+'Antrag und Erstattungssatz '!F11 -> Ja | G16: =+'Antrag und Erstattungssatz '!G11 -> Ja | H16: =+'Antrag und Erstattungssatz '!H11 -> Nein | I16: =+'Antrag und Erstattungssatz '!I11 -> Ja | J16: =+'Antrag und Erstattungssatz '!J11 -> Ja
B17: 3. Erstattungssätze und Förderung
C18: 2020-11-01 | D18: 2020-12-01 | E18: 2021-01-01 | F18: 2021-02-01 | G18: 2021-03-01 | H18: 2021-04-01 | I18: 2021-05-01 | J18: 2021-06-01
B19: Erstattungssatz | C19: =+Erstattungssatz -> 60% | D19: 60% | E19: 90% | F19: 90% | G19: 90% | H19: 0% | I19: 90% | J19: 90%
B21: ='Kosten und Förderung'!B36 -> Förderfähige Kosten | C21: =+'Kosten und Förderung'!D36 -> 40,152.13 € | D21: =+'Kosten und Förderung'!E36 -> 12,267.87 € | E21: =+'Kosten und Förderung'!F36 -> 600.00 € | F21: =+'Kosten und Förderung'!G36 -> 20,600.00 € | G21: =+'Kosten und Förderung'!H36 -> 600.00 € | H21: =+'Kosten und Förderung'!I36 -> 600.00 € | I21: =+'Kosten und Förderung'!J36 -> 600.00 € | J21: =+'Kosten und Förderung'!K36 -> 500.00 €
B22: ='Kosten und Förderung'!B37 -> Erstattung gem. maßgeblichem Erstattungssatz | C22: =+'Kosten und Förderung'!D37 -> 24,091.28 € | D22: =+'Kosten und Förderung'!E37 -> 7,360.72 € | E22: =+'Kosten und Förderung'!F37 -> 540.00 € | F22: =+'Kosten und Förderung'!G37 -> 18,540.00 € | G22: =+'Kosten und Förderung'!H37 -> 540.00 € | H22: =+'Kosten und Förderung'!I37 -> 0.00 € | I22: =+'Kosten und Förderung'!J37 -> 540.00 € | J22: =+'Kosten und Förderung'!K37 -> 450.00 €
B23: Maximaler Förderbetrag | C23: ='Kosten und Förderung'!D38 -> 24,091.28 € | D23: ='Kosten und Förderung'!E38 -> 7,360.72 € | E23: ='Kosten und Förderung'!F38 -> 540.00 € | F23: ='Kosten und Förderung'!G38 -> 18,540.00 € | G23: ='Kosten und Förderung'!H38 -> 540.00 € | H23: ='Kosten und Förderung'!I38 -> 0.00 € | I23: ='Kosten und Förderung'!J38 -> 540.00 € | J23: ='Kosten und Förderung'!K38 -> 450.00 €
B25: Summe Förderung bis Juni 2021 | D25: =SUM(C23:J23) -> 52,062.00 €
B27: =+IF(Soloselbständiger="ja","5. Günstigerprüfung bei Soloselbständigen","") -> 5. Günstigerprüfung bei Soloselbständigen
B28: =+IF(Soloselbständiger="ja","Summe Vergleichsumsatz 2019","") -> Summe Vergleichsumsatz 2019 | G28: =+IF(Soloselbständiger="ja",Günstigerprüfung_Solo!K15,"") -> 42,666.67 €
B29: =+IF(Soloselbständiger="ja","Förderung: Betriebskostenpauschale = 50% des Referenzumsatz, Maximal 7.500 €","") -> Förderung: Betriebskostenpauschale = 50% des Referenzumsatz, Maximal 7.500 € | G29: =+IF(Soloselbständiger="ja",Günstigerprüfung_Solo!K17,"") -> 7,500.00 €
B30: =+IF(Soloselbständiger="ja","Im Vergleich die Förderung nach tatsächlichen Kosten","") -> Im Vergleich die Förderung nach tatsächlichen Kosten | G30: =+IF(Soloselbständiger="ja",+D25,"") -> 52,062.00 €
B32: =IF(Soloselbständiger="ja",IF(Soloselbständiger="ja",IF(G29>G30,text_Förderung_Pauschal,text_förderung_tatsächlich),""),"") -> Die Förderung nach tatsächlichen Kosten ist günstiger.

Sheet Rechtliche Grundlagen
B1: Überbrückungshilfe Phase 3 Rechtliche Grundlagen
